fUSD/lending_fUSD_20240116
["ID","MTS","AMOUNT","RATE_DAILY","PERIOD"]
[311753920,1705378241114,-665.01,0.00022157,2]
[311753923,1705378241124,-500.0,0.00022157,2]
[311753925,1705378241137,-1754.21,0.00022157,2]
[311753927,1705378241146,-500.0,0.00022157,2]
[311753929,1705378241155,-521.97,0.00022157,2]
[311753931,1705378241164,-500.0,0.00022157,2]
[311753933,1705378241173,-1043.84,0.00022157,2]
[311753935,1705378241182,-500.0,0.00022157,2]
[311753937,1705378241191,-500.0,0.00022157,2]
[311753939,1705378241200,-500.0,0.00022157,2]
[311753941,1705378241209,-1343.04,0.00022157,2]
[311753943,1705378241218,-1260.2,0.00022157,2]
[311753945,1705378241228,-500.0,0.00022157,2]
[311753947,1705378241237,-500.0,0.00022157,2]
[311753949,1705378241247,-500.0,0.00022157,2]
[311753951,1705378241257,-3241.0,0.00022157,2]
[311753953,1705378241266,-1208.62,0.00022157,2]
[311753955,1705378241275,-500.0,0.00022157,2]
[311753957,1705378241285,-907.81,0.00022157,2]
[311753958,1705378241294,-533.74,0.00022157,2]
[311753960,1705378241303,-500.0,0.00022157,2]
[311753962,1705378241312,-500.0,0.00022157,2]
[311753965,1705378241322,-500.0,0.00022157,2]
[311753967,1705378241331,-4842.59,0.00022157,2]
[311753969,1705378241341,-500.0,0.00022157,2]
[311753970,1705378241350,-1022.4,0.00022157,2]
[311753972,1705378241359,-3206.12,0.00022157,2]
[311753975,1705378241369,-1741.46,0.00022157,2]
[311753977,1705378241378,-594.42,0.00022157,2]
[311753979,1705378241387,-500.0,0.00022157,2]
[311753981,1705378241396,-500.0,0.00022157,2]
[311753983,1705378241405,-500.0,0.00022157,2]
[311753985,1705378241415,-3385.67,0.00022157,2]
[311753987,1705378241424,-500.0,0.00022157,2]
[311753989,1705378241433,-500.0,0.00022157,2]
[311753991,1705378241442,-500.0,0.00022157,2]
[311753993,1705378241452,-2382.8,0.00022157,2]
[311753995,1705378241461,-500.0,0.00022157,2]
[311753997,1705378241470,-500.0,0.00022158,2]
[311753999,1705378241479,-652.24,0.00022158,2]
[311754001,1705378241488,-500.0,0.00022158,2]
[311754003,1705378241498,-500.0,0.00022158,2]
[311754005,1705378241507,-392.18441566,0.00022158,2]
[311754007,1705378241516,-500.0,0.00022158,2]
[311754009,1705378241526,-500.0,0.00022158,2]
[311754011,1705378241535,-500.0,0.00022158,2]
[311754013,1705378241544,-552.67587107,0.00022158,2]
[311754015,1705378241553,-500.0,0.00022158,2]
[311754017,1705378241562,-500.0,0.00022158,2]
[311754018,1705378241572,-500.0,0.00022158,2]
[311754021,1705378241581,-500.0,0.00022158,2]
[311754022,1705378241590,-500.0,0.00022158,2]
[311754024,1705378241601,-500.0,0.00022158,2]
[311754027,1705378241610,-500.0,0.00022158,2]
[311754029,1705378241620,-500.0,0.00022158,2]
[311754031,1705378241629,-500.0,0.00022158,2]
[311754033,1705378241638,-668.01,0.00022158,2]
[311754034,1705378241648,-500.0,0.00022158,2]
[311754036,1705378241657,-500.0,0.00022158,2]
[311754038,1705378241666,-500.0,0.00022158,2]
[311754039,1705378241675,-500.0,0.00022158,2]
[311754041,1705378241685,-804.89,0.00022158,2]
[311754043,1705378241695,-500.0,0.00022158,2]
[311754045,1705378241704,-500.0,0.00022158,2]
[311754047,1705378241714,-500.0,0.00022158,2]
[311754049,1705378241725,-500.0,0.00022158,2]
[311754050,1705378241734,-500.0,0.00022158,2]
[311754052,1705378241744,-568.98,0.00022158,2]
[311754054,1705378241754,-500.0,0.00022158,2]
[311754056,1705378241763,-500.0,0.00022158,2]
[311754058,1705378241772,-500.0,0.00022158,2]
[311754059,1705378241781,-500.0,0.00022158,2]
[311754061,1705378241791,-500.0,0.00022158,2]
[311754063,1705378241800,-500.0,0.00022158,2]
[311754065,1705378241810,-500.0,0.00022158,2]
[311754066,1705378241819,-500.0,0.00022158,2]
[311754068,1705378241828,-500.0,0.00022158,2]
[311754070,1705378241837,-500.0,0.00022158,2]
[311754072,1705378241846,-500.0,0.00022158,2]
[311754074,1705378241855,-500.0,0.00022158,2]
[311754076,1705378241865,-500.0,0.00022158,2]
[311754078,1705378241874,-500.0,0.00022158,2]
[311754079,1705378241883,-500.0,0.00022158,2]
[311754081,1705378241892,-500.0,0.00022158,2]
[311754083,1705378241902,-500.0,0.00022158,2]
[311754085,1705378241911,-500.0,0.00022158,2]
[311754087,1705378241920,-500.0,0.00022158,2]
[311754089,1705378241929,-500.0,0.00022158,2]
[311754090,1705378241938,-500.0,0.00022158,2]
[311754092,1705378241948,-500.0,0.00022158,2]
[311754094,1705378241958,-500.0,0.00022158,2]
[311754096,1705378241969,-357.94525464,0.00022158,2]
[311754098,1705378241978,-500.0,0.00022158,2]
[311754100,1705378241988,-500.0,0.00022158,2]
[311754102,1705378241998,-500.0,0.00022158,2]
[311754104,1705378242007,-500.0,0.00022158,2]
[311754105,1705378242016,-500.0,0.00022158,2]
[311754107,1705378242025,-500.0,0.00022158,2]
[311754109,1705378242035,-500.0,0.00022158,2]
[311754111,1705378242043,-500.0,0.00022158,2]
[311754113,1705378242052,-500.0,0.00022158,2]
[311754114,1705378242061,-500.0,0.00022158,2]
[311754116,1705378242071,-500.0,0.00022158,2]
[311754118,1705378242080,-666.69,0.00022158,2]
[311754120,1705378242091,-500.0,0.00022158,2]
[311754122,1705378242100,-500.0,0.00022158,2]
[311754124,1705378242109,-500.0,0.00022158,2]
[311754125,1705378242118,-585.27,0.00022158,2]
[311754127,1705378242127,-500.0,0.00022158,2]
[311754129,1705378242137,-500.0,0.00022158,2]
[311754131,1705378242147,-250.0,0.00022158,2]
[311754133,1705378242157,-532.52,0.00022158,2]
[311754135,1705378242166,-500.0,0.00022158,2]
[311754137,1705378242176,-500.0,0.00022158,2]
[311754138,1705378242185,-500.0,0.00022158,2]
[311754140,1705378242194,-500.0,0.00022158,2]
[311754142,1705378242203,-500.0,0.00022158,2]
[311754144,1705378242212,-822.16,0.00022158,2]
[311754147,1705378242222,-537.48032567,0.00022158,2]
[311754150,1705378242230,-1171.97,0.00022158,2]
[311754152,1705378242239,-500.0,0.00022158,2]
[311754154,1705378242249,-500.0,0.00022158,2]
[311754157,1705378242258,-500.0,0.00022158,2]
[311754160,1705378242267,-503.32,0.00022158,2]
[311754163,1705378242277,-500.0,0.00022158,2]
[311754167,1705378242287,-500.0,0.00022158,2]
[311754171,1705378242296,-500.0,0.00022158,2]
[311754173,1705378242305,-500.0,0.00022158,2]
[311754175,1705378242314,-500.0,0.00022158,2]
[311754177,1705378242324,-538.64,0.00022158,2]
[311754178,1705378242333,-500.0,0.00022158,2]
[311754180,1705378242341,-500.0,0.00022158,2]
[311754182,1705378242350,-500.0,0.00022158,2]
[311754184,1705378242359,-500.0,0.00022158,2]
[311754186,1705378242369,-500.0,0.00022158,2]
[311754188,1705378242378,-627.01,0.00022158,2]
[311754190,1705378242387,-529.55,0.00022158,2]
[311754192,1705378242396,-615.45,0.00022158,2]
[311754194,1705378242406,-500.0,0.00022158,2]
[311754197,1705378242415,-519.25,0.00022158,2]
[311754199,1705378242424,-680.79,0.00022158,2]
[311754202,1705378242433,-624.2,0.00022158,2]
[311754205,1705378242442,-500.0,0.00022158,2]
[311754208,1705378242451,-422.05511836,0.00022158,2]
[311754211,1705378242461,-513.4674768,0.00022158,2]
[311754214,1705378242470,-586.91,0.00022158,2]
[311754217,1705378242479,-677.22,0.00022158,2]
[311754220,1705378242488,-500.0,0.00022158,2]
[311754223,1705378242498,-500.0,0.00022158,2]
[311754226,1705378242508,-500.0,0.00022158,2]
[311754228,1705378242518,-394.64634697,0.00022158,2]
[311754231,1705378242527,-500.0,0.00022158,2]
[311754234,1705378242537,-772.92,0.00022158,2]
[311754236,1705378242547,-500.0,0.00022158,2]
[311754238,1705378242556,-500.0,0.00022158,2]
[311754240,1705378242566,-966.93,0.00022158,2]
[311754242,1705378242575,-500.0,0.00022158,2]
[311754244,1705378242585,-793.42,0.00022158,2]
[311754246,1705378242594,-500.0,0.00022158,2]
[311754248,1705378242603,-500.0,0.00022158,2]
[311754250,1705378242613,-373.73095921,0.00022158,2]
[311754252,1705378242622,-500.0,0.00022158,2]
[311754253,1705378242631,-554.76,0.00022158,2]
[311754255,1705378242641,-500.0,0.00022158,2]
[311754257,1705378242650,-500.0,0.00022158,2]
[311754259,1705378242660,-539.12,0.00022158,2]
[311754261,1705378242669,-500.0,0.00022158,2]
[311754263,1705378242678,-618.11850186,0.00022158,2]
[311754265,1705378242688,-500.0,0.00022158,2]
[311754266,1705378242697,-500.0,0.00022158,2]
[311754268,1705378242707,-500.0,0.00022158,2]
[311754270,1705378242716,-607.58,0.00022158,2]
[311754271,1705378242727,-503.16,0.00022158,2]
[311754272,1705378242737,-500.0,0.00022158,2]
[311754273,1705378242749,-500.0,0.00022158,2]
[311754274,1705378242758,-494.19070803,0.00022158,2]
[311754275,1705378242768,-500.0,0.00022158,2]
[311754276,1705378242777,-500.0,0.00022158,2]
[311754277,1705378242787,-500.0,0.00022158,2]
[311754278,1705378242796,-552.42,0.00022158,2]
[311754279,1705378242806,-513.83827998,0.00022158,2]
[311754280,1705378242815,-883.93,0.00022158,2]
[311754282,1705378242824,-500.0,0.00022158,2]
[311754284,1705378242834,-520.86,0.00022158,2]
[311754286,1705378242843,-500.0,0.00022158,2]
[311754288,1705378242852,-500.0,0.00022158,2]
[311754290,1705378242862,-626.47,0.00022158,2]
[311754292,1705378242874,-500.0,0.00022158,2]
[311754321,1705378243144,-614.67,0.00022158,2]
[311754323,1705378243205,-500.0,0.00022158,2]
[311754325,1705378243214,-781.65,0.00022158,2]
[311754327,1705378243223,-500.0,0.00022158,2]
[311754329,1705378243236,-500.0,0.00022158,2]
[311754330,1705378243247,-500.0,0.00022158,2]
[311754331,1705378243256,-500.0,0.00022158,2]
[311754332,1705378243266,-872.53,0.00022158,2]
[311754333,1705378243275,-500.0,0.00022158,2]
[311754334,1705378243285,-500.0,0.00022158,2]
[311754335,1705378243294,-775.73,0.00022158,2]
[311754336,1705378243303,-500.0,0.00022158,2]
[311754337,1705378243313,-500.0,0.00022158,2]
[311754338,1705378243323,-500.0,0.00022158,2]
[311754339,1705378243332,-500.0,0.00022158,2]
[311754340,1705378243342,-500.0,0.00022158,2]
[311754341,1705378243352,-720.98,0.00022158,2]
[311754342,1705378243362,-429.9474993,0.00022158,2]
[311754343,1705378243371,-500.0,0.00022158,2]
[311754344,1705378243381,-671.52,0.00022158,2]
[311754345,1705378243390,-500.0,0.00022158,2]
[311754346,1705378243400,-500.0,0.00022158,2]
[311754347,1705378243409,-500.0,0.00022158,2]
[311754348,1705378243419,-500.0,0.00022158,2]
[311754349,1705378243429,-705.72,0.00022158,2]
[311754350,1705378243438,-500.0,0.00022158,2]
[311754351,1705378243447,-1250.93,0.00022158,2]
[311754352,1705378243457,-500.0,0.00022158,2]
[311754353,1705378243466,-500.0,0.00022158,2]
[311754354,1705378243476,-500.0,0.00022158,2]
[311754355,1705378243485,-500.0,0.00022158,2]
[311754356,1705378243495,-657.68,0.00022158,2]
[311754357,1705378243504,-500.0,0.00022158,2]
[311754358,1705378243514,-622.67,0.00022158,2]
[311754359,1705378243523,-556.88,0.00022158,2]
[311754360,1705378243532,-500.0,0.00022158,2]
[311754361,1705378243546,-720.95,0.00022158,2]
[311754362,1705378243556,-500.0,0.00022158,2]
[311754363,1705378243566,-500.0,0.00022158,2]
[311754364,1705378243576,-500.0,0.00022158,2]
[311754365,1705378243586,-500.0,0.00022158,2]
[311754366,1705378243596,-1048.43,0.00022158,2]
[311754367,1705378243606,-500.0,0.00022158,2]
[311754368,1705378243616,-642.22,0.00022158,2]
[311754369,1705378243626,-500.0,0.00022158,2]
[311754370,1705378243636,-500.0,0.00022158,2]
[311754371,1705378243646,-500.0,0.00022158,2]
[311754372,1705378243657,-572.23,0.00022158,2]
[311754373,1705378243667,-1774.11,0.00022158,2]
[311754374,1705378243678,-573.86,0.00022158,2]
[311754375,1705378243687,-500.0,0.00022158,2]
[311754376,1705378243697,-500.0,0.00022158,2]
[311754377,1705378243707,-500.0,0.00022158,2]
[311754378,1705378243717,-500.0,0.00022158,2]
[311754379,1705378243727,-594.76,0.00022158,2]
[311754380,1705378243738,-500.0,0.00022158,2]
[311754381,1705378243748,-500.0,0.00022158,2]
[311754382,1705378243758,-1613.39,0.00022158,2]
[311754383,1705378243768,-1605.96,0.00022158,2]
[311754384,1705378243778,-526.66424589,0.00022158,2]
[311754385,1705378243788,-522.59788212,0.00022158,2]
[311754386,1705378243797,-589.65,0.00022158,2]
[311754387,1705378243807,-500.0,0.00022158,2]
[311754388,1705378243817,-500.0,0.00022158,2]
[311754389,1705378243826,-550.1996002,0.00022158,2]
[311754390,1705378243836,-500.0,0.00022158,2]
[311754391,1705378243846,-1000.0,0.00022158,2]
[311754392,1705378243856,-2316.19,0.00022158,2]
[311754393,1705378243866,-4285.28,0.00022158,2]
[311754394,1705378243875,-500.0,0.00022158,2]
[311754395,1705378243885,-530.59,0.00022158,2]
[311754396,1705378243895,-1216.42,0.00022158,2]
[311754397,1705378243905,-500.0,0.00022158,2]
[311754398,1705378243914,-516.95,0.00022158,2]
[311754399,1705378243925,-1967.53,0.00022158,2]
[311754400,1705378243935,-500.0,0.00022158,2]
[311754401,1705378243946,-691.21,0.00022158,2]
[311754402,1705378243957,-784.17,0.00022158,2]
[311754403,1705378243968,-782.17,0.00022158,2]
[311754404,1705378243978,-681.2,0.00022158,2]
[311754405,1705378243988,-833.11,0.00022158,2]
[311754406,1705378243998,-500.0,0.00022158,2]
[311754407,1705378244008,-500.0,0.00022158,2]
[311754408,1705378244017,-722.04,0.00022158,2]
[311754409,1705378244027,-389.68405575,0.00022158,2]
[311754410,1705378244037,-893.25,0.00022158,2]
[311754411,1705378244051,-500.0,0.00022158,2]
[311754412,1705378244061,-654.5,0.00022158,2]
[311754413,1705378244071,-597.71,0.00022158,2]
[311754414,1705378244081,-1732.01,0.00022158,2]
[311754415,1705378244091,-1017.58,0.00022158,2]
[311754416,1705378244101,-500.0,0.00022158,2]
[311754417,1705378244111,-500.0,0.00022158,2]
[311754418,1705378244121,-1309.14,0.00022158,2]
[311754419,1705378244131,-500.0,0.00022158,2]
[311754420,1705378244141,-500.0,0.00022158,2]
[311754421,1705378244151,-500.0,0.00022158,2]
[311754422,1705378244161,-975.04,0.00022158,2]
[311754423,1705378244172,-500.0,0.00022158,2]
[311754424,1705378244182,-1058.39,0.00022158,2]
[311754425,1705378244192,-500.0,0.00022158,2]
[311754426,1705378244201,-500.0,0.00022158,5]
[311754427,1705378244211,-686.88,0.00022158,2]
[311754428,1705378244220,-866.71,0.00022158,2]
[311754429,1705378244230,-2717.14,0.00022158,2]
[311754430,1705378244240,-500.0,0.00022158,2]
[311754431,1705378244250,-741.61,0.00022158,2]
[311754432,1705378244260,-500.0,0.00022158,2]
[311754433,1705378244271,-485.27369681,0.00022158,2]
[311754434,1705378244281,-620.87,0.00022158,2]
[311754435,1705378244291,-300.0,0.00022158,2]
[311754436,1705378244301,-1026.1,0.00022158,2]
[311754437,1705378244311,-898.95,0.00022158,2]
[311754438,1705378244321,-3030.71,0.00022158,2]
[311754439,1705378244331,-500.0,0.00022158,2]
[311754440,1705378244340,-500.0,0.00022158,2]
[311754441,1705378244351,-500.0,0.00022158,2]
[311754442,1705378244362,-810.38,0.00022158,2]
[311754443,1705378244375,-500.0,0.00022158,2]
[311754444,1705378244385,-500.0,0.00022158,2]
[311754445,1705378244397,-715.32,0.00022158,2]
[311754446,1705378244409,-722.27,0.00022158,2]
[311754447,1705378244420,-500.0,0.00022158,2]
[311754448,1705378244429,-500.0,0.00022158,2]
[311754449,1705378244440,-660.23,0.00022158,2]
[311754450,1705378244451,-847.11,0.00022158,2]
[311754451,1705378244461,-500.0,0.00022158,2]
[311754452,1705378244471,-602.62,0.00022158,2]
[311754453,1705378244481,-500.0,0.00022158,2]
[311754454,1705378244491,-627.89,0.00022158,2]
[311754455,1705378244502,-1705.45,0.00022158,2]
[311754456,1705378244511,-500.0,0.00022158,2]
[311754457,1705378244522,-500.0,0.00022158,2]
[311754458,1705378244531,-1039.82,0.00022158,2]
[311754459,1705378244541,-2403.37,0.00022158,2]
[311754460,1705378244552,-500.0,0.00022158,2]
[311754461,1705378244563,-570.4,0.00022158,2]
[311754462,1705378244573,-2574.76,0.00022158,2]
[311754463,1705378244583,-1746.2,0.00022158,2]
[311754464,1705378244592,-1132.73,0.00022158,2]
[311754465,1705378244602,-500.0,0.00022158,2]
[311754466,1705378244612,-500.0,0.00022158,2]
[311754467,1705378244622,-598.31,0.00022158,2]
[311754468,1705378244632,-597.14,0.00022158,2]
[311754469,1705378244642,-1253.06,0.00022158,2]
[311754470,1705378244653,-640.14,0.00022158,2]
[311754471,1705378244662,-500.0,0.00022158,2]
[311754472,1705378244672,-500.0,0.00022158,2]
[311754473,1705378244683,-942.35,0.00022158,2]
[311754474,1705378244693,-500.0,0.00022158,2]
[311754475,1705378244703,-3121.21,0.00022158,2]
[311754476,1705378244713,-631.69,0.00022158,2]
[311754477,1705378244723,-629.5,0.00022158,2]
[311754478,1705378244732,-500.0,0.00022158,2]
[311754479,1705378244742,-546.29,0.00022158,2]
[311754480,1705378244752,-602.8,0.00022158,2]
[311754481,1705378244763,-739.11,0.00022158,2]
[311754482,1705378244772,-266.46930009,0.00022158,2]
[311754483,1705378244782,-500.0,0.00022158,2]
[311754484,1705378244793,-500.0,0.00022158,2]
[311754485,1705378244803,-500.0,0.00022158,2]
[311754486,1705378244812,-500.0,0.00022158,2]
[311754487,1705378244822,-1387.18,0.00022158,2]
[311754488,1705378244833,-1473.84,0.00022158,2]
[311754489,1705378244843,-500.0,0.00022158,2]
[311754490,1705378244853,-528.94,0.00022158,2]
[311754491,1705378244863,-500.0,0.00022158,2]
[311754492,1705378244877,-500.0,0.00022158,2]
[311754493,1705378244886,-854.0,0.00022158,2]
[311754494,1705378244897,-500.0,0.00022158,2]
[311754495,1705378244906,-607.84,0.00022158,2]
[311754496,1705378244917,-795.55,0.00022158,2]
[311754497,1705378244927,-232.98773667,0.00022158,2]
[311754498,1705378244937,-693.09,0.00022158,2]
[311754499,1705378244948,-500.0,0.00022158,2]
[311754500,1705378244958,-500.0,0.00022158,2]
[311754501,1705378244968,-173.50672531,0.00022158,2]
[311754502,1705378244978,-500.0,0.00022158,2]
[311754503,1705378244988,-500.0,0.00022158,2]
[311754504,1705378244998,-1434.28,0.00022158,2]
[311754505,1705378245007,-166.64442265,0.00022158,2]
[311754506,1705378245016,-508.29,0.00022158,2]
[311754507,1705378245025,-500.0,0.00022158,2]
[311754508,1705378245043,-2152.5,0.00022158,2]
[311754509,1705378245056,-500.0,0.00022158,2]
[311754510,1705378245066,-500.0,0.00022158,2]
[311754511,1705378245076,-1145.58,0.00022158,2]
[311754512,1705378245086,-606.4,0.00022158,2]
[311754513,1705378245096,-500.0,0.00022158,2]
[311754514,1705378245106,-500.0,0.00022158,2]
[311754515,1705378245115,-646.94,0.00022158,2]
[311754516,1705378245126,-1162.73,0.00022158,2]
[311754517,1705378245135,-500.0,0.00022158,2]
[311754518,1705378245146,-500.0,0.00022158,2]
[311754519,1705378245156,-769.22,0.00022158,2]
[311754520,1705378245166,-555.51,0.00022158,2]
[311754521,1705378245175,-647.14,0.00022158,2]
[311754522,1705378245186,-1021.57,0.00022158,2]
[311754523,1705378245195,-606.44,0.00022158,2]
[311754524,1705378245205,-500.0,0.00022158,2]
[311754525,1705378245216,-500.0,0.00022159,2]
[311754526,1705378245227,-500.0,0.00022159,2]
[311754527,1705378245237,-500.0,0.00022159,2]
[311754528,1705378245248,-500.0,0.00022159,2]
[311754529,1705378245258,-500.0,0.00022159,2]
[311754530,1705378245268,-500.0,0.00022159,2]
[311754532,1705378245278,-500.0,0.00022159,2]
[311754533,1705378245288,-532.15,0.00022159,2]
[311754534,1705378245298,-575.17,0.00022159,2]
[311754535,1705378245308,-500.0,0.00022159,2]
[311754536,1705378245318,-500.0,0.00022159,2]
[311754537,1705378245327,-500.0,0.00022159,2]
[311754538,1705378245337,-500.0,0.00022159,2]
[311754539,1705378245347,-500.0,0.00022159,2]
[311754540,1705378245357,-500.0,0.00022159,2]
[311754541,1705378245366,-500.0,0.00022159,2]
[311754542,1705378245377,-500.0,0.00022159,2]
[311754543,1705378245387,-500.0,0.00022159,2]
[311754544,1705378245396,-500.0,0.00022159,2]
[311754545,1705378245406,-500.0,0.00022159,2]
[311754546,1705378245416,-500.0,0.00022159,2]
[311754547,1705378245428,-500.0,0.00022159,2]
[311754548,1705378245438,-500.0,0.00022159,2]
[311754549,1705378245450,-500.0,0.00022159,2]
[311754550,1705378245462,-500.0,0.00022159,2]
[311754551,1705378245473,-500.0,0.00022159,2]
[311754552,1705378245483,-500.0,0.00022159,2]
[311754553,1705378245493,-316.38314727,0.00022159,2]
[311754554,1705378245503,-179.17424551,0.00022159,2]
[311754555,1705378245514,-744.59,0.00022159,2]
[311754556,1705378245524,-500.0,0.00022159,2]
[311754557,1705378245534,-500.0,0.00022159,2]
[311754558,1705378245544,-500.0,0.00022159,2]
[311754559,1705378245555,-699.75,0.00022159,2]
[311754560,1705378245567,-500.0,0.00022159,2]
[311754561,1705378245577,-500.0,0.00022159,2]
[311754562,1705378245587,-591.21,0.00022159,2]
[311754563,1705378245597,-500.0,0.00022159,2]
[311754564,1705378245608,-579.24,0.00022159,2]
[311754565,1705378245618,-500.0,0.00022159,2]
[311754566,1705378245628,-520.29431501,0.00022159,2]
[311754567,1705378245638,-500.0,0.00022159,2]
[311754568,1705378245648,-500.0,0.00022159,2]
[311754569,1705378245658,-600.03,0.00022159,2]
[311754570,1705378245668,-500.0,0.00022159,2]
[311754573,1705378245862,-500.0,0.00022159,2]
[311754575,1705378245871,-500.0,0.00022159,2]
[311754577,1705378245881,-613.57,0.00022159,2]
[311754579,1705378245890,-500.0,0.00022159,2]
[311754581,1705378245899,-500.0,0.00022159,2]
[311754583,1705378245911,-500.0,0.00022159,2]
[311754584,1705378245920,-500.0,0.00022159,2]
[311754586,1705378245930,-500.0,0.00022159,2]
[311754588,1705378245939,-523.06407422,0.00022159,2]
[311754590,1705378245948,-500.0,0.00022159,2]
[311754592,1705378245957,-514.63,0.00022159,2]
[311754594,1705378245966,-1004.69,0.00022159,2]
[311754596,1705378245975,-500.0,0.00022159,2]
[311754598,1705378245984,-777.46,0.00022159,2]
[311754600,1705378245993,-500.0,0.00022159,2]
[311754602,1705378246002,-650.94,0.00022159,2]
[311754604,1705378246011,-500.0,0.00022159,2]
[311754606,1705378246020,-598.0,0.00022159,2]
[311754608,1705378246030,-500.0,0.00022159,2]
[311754610,1705378246039,-562.18,0.00022159,2]
[311754612,1705378246048,-500.0,0.00022159,2]
[311754614,1705378246058,-500.0,0.00022159,2]
[311754616,1705378246066,-525.25459496,0.00022159,2]
[311754618,1705378246076,-360.69976538,0.00022159,2]
[311754620,1705378246085,-500.0,0.00022159,2]
[311754622,1705378246094,-500.0,0.00022159,2]
[311754624,1705378246103,-500.0,0.00022159,2]
[311754626,1705378246112,-560.2,0.00022159,2]
[311754627,1705378246121,-502.82,0.00022159,2]
[311754629,1705378246130,-500.0,0.00022159,2]
[311754631,1705378246140,-500.0,0.00022159,2]
[311754633,1705378246149,-500.0,0.00022159,2]
[311754634,1705378246158,-501.54,0.00022159,2]
[311754635,1705378246168,-1021.7,0.00022159,2]
[311754636,1705378246177,-529.71,0.00022159,2]
[311754637,1705378246187,-477.37672572,0.00022159,2]
[311754638,1705378246196,-500.0,0.00022159,2]
[311754639,1705378246206,-832.52,0.00022159,2]
[311754640,1705378246215,-500.0,0.00022159,2]
[311754641,1705378246224,-500.0,0.00022159,2]
[311754642,1705378246234,-500.0,0.00022159,2]
[311754643,1705378246244,-527.53,0.00022159,2]
[311754644,1705378246253,-500.0,0.00022159,2]
[311754645,1705378246263,-440.58770349,0.00022159,2]
[311754646,1705378246272,-500.0,0.00022159,2]
[311754647,1705378246281,-500.0,0.00022159,2]
[311754648,1705378246290,-500.0,0.00022159,2]
[311754649,1705378246299,-1083.52,0.00022159,2]
[311754650,1705378246308,-500.0,0.00022159,2]
[311754651,1705378246318,-500.0,0.00022159,2]
[311754652,1705378246327,-517.5468718,0.00022159,2]
[311754653,1705378246336,-500.0,0.00022159,2]
[311754654,1705378246346,-768.86,0.00022159,2]
[311754655,1705378246355,-1094.17,0.00022159,2]
[311754656,1705378246365,-500.0,0.00022159,2]
[311754657,1705378246374,-500.0,0.00022159,2]
[311754658,1705378246384,-500.0,0.00022159,2]
[311754659,1705378246393,-512.41,0.00022159,2]
[311754660,1705378246402,-827.48,0.00022159,2]
[311754661,1705378246412,-676.55,0.00022159,2]
[311754662,1705378246422,-500.0,0.00022159,2]
[311754663,1705378246431,-500.0,0.00022159,2]
[311754664,1705378246440,-609.19,0.00022159,2]
[311754665,1705378246449,-614.6,0.00022159,2]
[311754666,1705378246458,-500.0,0.00022159,2]
[311754667,1705378246467,-517.60839303,0.00022159,2]
[311754668,1705378246476,-564.04773182,0.00022159,2]